[Event "Late-Titled-Tuesday-Blitz-February-27-2024"]
[Site "Chess.com"]
[Date "2024.02.27"]
[Round "1"]
[White "robertoalejandro10"]
[Black "trriinu"]
[Result "1-0"]
[WhiteElo "2602"]
[BlackElo "2252"]
[TimeControl "180+1"]
[EndTime "14:05:32 PST"]
[Termination "robertoalejandro10 won by resignation"]

1. Nf3 {[%clk 0:02:58.2]} 1... g6 {[%clk 0:02:54.5]} 2. c4 {[%clk 0:02:57.6]}
2... Bg7 {[%clk 0:02:49.2]} 3. g3 {[%clk 0:02:57.5]} 3... d6 {[%clk 0:02:48]} 4.
Bg2 {[%clk 0:02:56.8]} 4... Nf6 {[%clk 0:02:48.7]} 5. O-O {[%clk 0:02:56.4]}
5... O-O {[%clk 0:02:49.4]} 6. Nc3 {[%clk 0:02:56.9]} 6... Nbd7 {[%clk
0:02:49.3]} 7. b3 {[%clk 0:02:57.2]} 7... e5 {[%clk 0:02:47.4]} 8. Bb2 {[%clk
0:02:57.1]} 8... a5 {[%clk 0:02:45.1]} 9. d4 {[%clk 0:02:55.9]} 9... exd4 {[%clk
0:02:41]} 10. Qxd4 {[%clk 0:02:55.6]} 10... Nc5 {[%clk 0:02:30.8]} 11. Nd5
{[%clk 0:02:52.7]} 11... Nh5 {[%clk 0:01:59]} 12. Qd2 {[%clk 0:02:50.8]} 12...
Ne4 {[%clk 0:01:45.5]} 13. Qc1 {[%clk 0:02:48.2]} 13... c6 {[%clk 0:01:29.3]}
14. Bxg7 {[%clk 0:02:43.5]} 14... Nxg7 {[%clk 0:01:29.1]} 15. Nc3 {[%clk
0:02:43.4]} 15... Nxc3 {[%clk 0:01:06.3]} 16. Qxc3 {[%clk 0:02:44.3]} 16... Qe7
{[%clk 0:01:06.8]} 17. e3 {[%clk 0:02:37.1]} 17... Ne6 {[%clk 0:00:47.4]} 18.
Rfd1 {[%clk 0:02:33.4]} 18... Nc5 {[%clk 0:00:47.1]} 19. Rd4 {[%clk 0:02:04.9]}
19... Bf5 {[%clk 0:00:23.9]} 20. Rad1 {[%clk 0:02:01.1]} 20... Ne4 {[%clk
0:00:20.4]} 21. Qb2 {[%clk 0:01:57.6]} 21... c5 {[%clk 0:00:10.2]} 22. Rd5
{[%clk 0:01:53]} 22... Be6 {[%clk 0:00:09.6]} 23. R5d3 {[%clk 0:01:52.1]} 23...
f5 {[%clk 0:00:09.9]} 24. Nd2 {[%clk 0:01:43.1]} 24... Nxd2 {[%clk 0:00:03.4]}
25. Qxd2 {[%clk 0:01:44]} 25... Qf6 {[%clk 0:00:02.4]} 26. Rxd6 {[%clk
0:01:41.4]} 26... Rfd8 {[%clk 0:00:01.6]} 1-0

[Event "Late-Titled-Tuesday-Blitz-February-27-2024"]
[Site "Chess.com"]
[Date "2024.02.27"]
[Round "1"]
[White "ncofre98"]
[Black "Seochesspie"]
[Result "0-1"]
[WhiteElo "2486"]
[BlackElo "2904"]
[TimeControl "180+1"]
[EndTime "14:05:33 PST"]
[Termination "Seochesspie won by checkmate"]

1. c4 {[%clk 0:02:58.4]} 1... Nf6 {[%clk 0:03:00.1]} 2. g3 {[%clk 0:02:57.4]}
2... e6 {[%clk 0:02:59.4]} 3. Bg2 {[%clk 0:02:58]} 3... d5 {[%clk 0:03:00]} 4.
Nf3 {[%clk 0:02:58.8]} 4... d4 {[%clk 0:03:00]} 5. O-O {[%clk 0:02:59.5]} 5...
c5 {[%clk 0:02:59.8]} 6. e3 {[%clk 0:03:00.1]} 6... Nc6 {[%clk 0:03:00.2]} 7.
exd4 {[%clk 0:03:00.8]} 7... cxd4 {[%clk 0:03:01.1]} 8. Re1 {[%clk 0:03:01.3]}
8... Bd6 {[%clk 0:02:58.7]} 9. d3 {[%clk 0:03:01.9]} 9... h6 {[%clk 0:02:58.9]}
10. Na3 {[%clk 0:03:01.6]} 10... O-O {[%clk 0:02:58.7]} 11. Nc2 {[%clk
0:03:01.8]} 11... a5 {[%clk 0:02:57.6]} 12. b3 {[%clk 0:03:01.1]} 12... e5
{[%clk 0:02:55.7]} 13. a3 {[%clk 0:03:01.1]} 13... Bf5 {[%clk 0:02:53.8]} 14.
Rb1 {[%clk 0:03:00.2]} 14... Re8 {[%clk 0:02:52.5]} 15. b4 {[%clk 0:02:59.9]}
15... axb4 {[%clk 0:02:53.4]} 16. axb4 {[%clk 0:03:00.2]} 16... Rc8 {[%clk
0:02:41.9]} 17. b5 {[%clk 0:02:57.4]} 17... Ne7 {[%clk 0:02:39.9]} 18. Nb4
{[%clk 0:02:55.4]} 18... Ng6 {[%clk 0:02:36.2]} 19. Qb3 {[%clk 0:02:49.3]} 19...
Qd7 {[%clk 0:02:34.6]} 20. Ba3 {[%clk 0:02:44.4]} 20... Bc5 {[%clk 0:02:26.6]}
21. Nd2 {[%clk 0:02:42.2]} 21... h5 {[%clk 0:02:22.2]} 22. Nd5 {[%clk
0:02:39.5]} 22... Nxd5 {[%clk 0:02:20.9]} 23. Bxd5 {[%clk 0:02:39.4]} 23... Bxa3
{[%clk 0:02:21]} 24. Qxa3 {[%clk 0:02:40.2]} 24... h4 {[%clk 0:02:19.4]} 25. Ne4
{[%clk 0:02:32.4]} 25... hxg3 {[%clk 0:02:14.2]} 26. hxg3 {[%clk 0:02:32.3]}
26... Bxe4 {[%clk 0:02:12.8]} 27. Bxe4 {[%clk 0:02:31.7]} 27... Nf8 {[%clk
0:02:11.6]} 28. c5 {[%clk 0:02:30.9]} 28... Qe7 {[%clk 0:02:08.5]} 29. Rbc1
{[%clk 0:02:24.2]} 29... Ne6 {[%clk 0:02:08.1]} 30. Bf5 {[%clk 0:02:16.8]} 30...
Rxc5 {[%clk 0:02:05.9]} 31. Bxe6 {[%clk 0:02:09.8]} 31... Rxc1 {[%clk
0:02:05.9]} 32. Bxf7+ {[%clk 0:02:09.8]} 32... Qxf7 {[%clk 0:02:02]} 33. Qxc1
{[%clk 0:02:09.8]} 33... Qd5 {[%clk 0:02:00.6]} 34. b6 {[%clk 0:02:03.4]} 34...
e4 {[%clk 0:01:51]} 35. dxe4 {[%clk 0:02:02]} 35... Rxe4 {[%clk 0:01:51.5]} 36.
Qc8+ {[%clk 0:01:56.1]} 36... Kh7 {[%clk 0:01:51.3]} 37. Rd1 {[%clk 0:01:42.5]}
37... d3 {[%clk 0:01:45.8]} 38. Qh3+ {[%clk 0:01:38.6]} 38... Kg8 {[%clk
0:01:39.5]} 39. Qc8+ {[%clk 0:01:38]} 39... Kh7 {[%clk 0:01:39.2]} 40. Qh3+
{[%clk 0:01:37.9]} 40... Kg6 {[%clk 0:01:39.7]} 41. g4 {[%clk 0:01:35.5]} 41...
Rd4 {[%clk 0:01:24.9]} 42. Rd2 {[%clk 0:01:26.4]} 42... Qe5 {[%clk 0:01:20.1]}
43. Kf1 {[%clk 0:01:17.1]} 43... Qd5 {[%clk 0:01:15.4]} 44. Qe3 {[%clk
0:01:01.5]} 44... Qh1# {[%clk 0:01:13.5]} 0-1

[Event "Late-Titled-Tuesday-Blitz-February-27-2024"]
[Site "Chess.com"]
[Date "2024.02.27"]
[Round "1"]
[White "Flaccidmoves"]
[Black "js20000"]
[Result "0-1"]
[WhiteElo "2464"]
[BlackElo "2828"]
[TimeControl "180+1"]
[EndTime "14:05:33 PST"]
[Termination "js20000 won on time"]

1. d4 {[%clk 0:03:00.9]} 1... e6 {[%clk 0:02:56.9]} 2. c4 {[%clk 0:03:00.2]}
2... b6 {[%clk 0:02:55.4]} 3. e4 {[%clk 0:02:58.8]} 3... Bb4+ {[%clk 0:02:53.9]}
4. Bd2 {[%clk 0:02:57.1]} 4... Bxd2+ {[%clk 0:02:53.3]} 5. Qxd2 {[%clk
0:02:54.6]} 5... d5 {[%clk 0:02:53.2]} 6. cxd5 {[%clk 0:02:45]} 6... exd5 {[%clk
0:02:54.1]} 7. e5 {[%clk 0:02:45.3]} 7... Ne7 {[%clk 0:02:42.7]} 8. Nc3 {[%clk
0:02:32]} 8... c5 {[%clk 0:02:42]} 9. Nf3 {[%clk 0:02:07.4]} 9... Bg4 {[%clk
0:02:40]} 10. Be2 {[%clk 0:02:05.4]} 10... Nbc6 {[%clk 0:02:39.2]} 11. dxc5
{[%clk 0:01:56.5]} 11... bxc5 {[%clk 0:02:38.8]} 12. O-O {[%clk 0:01:52.8]}
12... O-O {[%clk 0:02:32.2]} 13. Rfd1 {[%clk 0:01:46.4]} 13... d4 {[%clk
0:02:30.2]} 14. Ne4 {[%clk 0:01:45.8]} 14... Bxf3 {[%clk 0:02:30]} 15. Bxf3
{[%clk 0:01:44.6]} 15... Nxe5 {[%clk 0:02:29.6]} 16. Nxc5 {[%clk 0:01:31.8]}
16... Nxf3+ {[%clk 0:02:29.3]} 17. gxf3 {[%clk 0:01:32.7]} 17... Nf5 {[%clk
0:02:29.4]} 18. Qf4 {[%clk 0:01:23.5]} 18... Qd5 {[%clk 0:02:28.5]} 19. Rac1
{[%clk 0:01:14.7]} 19... Rfe8 {[%clk 0:02:27.8]} 20. Ne4 {[%clk 0:01:07.3]}
20... Rac8 {[%clk 0:02:13.5]} 21. b4 {[%clk 0:00:56]} 21... h6 {[%clk
0:02:09.7]} 22. a4 {[%clk 0:00:49.6]} 22... d3 {[%clk 0:02:07.1]} 23. b5 {[%clk
0:00:42.9]} 23... Nd4 {[%clk 0:02:04.8]} 24. Rxc8 {[%clk 0:00:23.9]} 24... Ne2+
{[%clk 0:02:04.4]} 25. Kf1 {[%clk 0:00:20.4]} 25... Nxf4 {[%clk 0:02:04.3]} 26.
Rxe8+ {[%clk 0:00:20]} 26... Kh7 {[%clk 0:02:04.8]} 27. Rf8 {[%clk 0:00:11.9]}
27... Qh5 {[%clk 0:02:01.5]} 28. Ke1 {[%clk 0:00:07.2]} 28... Qxf3 {[%clk
0:02:00.1]} 29. Nc3 {[%clk 0:00:05.2]} 29... d2+ {[%clk 0:01:56.1]} 30. Rxd2
{[%clk 0:00:03.1]} 30... Qxc3 {[%clk 0:01:55.6]} 31. Kd1 {[%clk 0:00:01.5]}
31... Qb3+ {[%clk 0:01:49.8]} 32. Ke1 {[%clk 0:00:01.4]} 32... Qb1+ {[%clk
0:01:49.2]} 33. Rd1 {[%clk 0:00:01.8]} 33... Qb4+ {[%clk 0:01:49.1]} 34. Kf1
{[%clk 0:00:02]} 34... Qxf8 {[%clk 0:01:49.3]} 0-1

[Event "Late-Titled-Tuesday-Blitz-February-27-2024"]
[Site "Chess.com"]
[Date "2024.02.27"]
[Round "1"]
[White "LyonBeast"]
[Black "Baronessa08"]
[Result "1-0"]
[WhiteElo "3129"]
[BlackElo "2525"]
[TimeControl "180+1"]
[EndTime "14:05:36 PST"]
[Termination "LyonBeast won by resignation"]

1. Nf3 {[%clk 0:03:00.9]} 1... d5 {[%clk 0:02:56.9]} 2. g3 {[%clk 0:03:00.5]}
2... c6 {[%clk 0:02:56.4]} 3. Bg2 {[%clk 0:03:00.5]} 3... Nf6 {[%clk 0:02:56.9]}
4. b3 {[%clk 0:03:00]} 4... g6 {[%clk 0:02:57]} 5. Bb2 {[%clk 0:03:00.4]} 5...
Bg7 {[%clk 0:02:57.6]} 6. O-O {[%clk 0:03:00.8]} 6... O-O {[%clk 0:02:57.9]} 7.
c4 {[%clk 0:03:00.7]} 7... a5 {[%clk 0:02:53.3]} 8. cxd5 {[%clk 0:02:58.4]} 8...
cxd5 {[%clk 0:02:51.8]} 9. Nc3 {[%clk 0:02:58.2]} 9... Nc6 {[%clk 0:02:49.1]}
10. Nb5 {[%clk 0:02:56.9]} 10... Bg4 {[%clk 0:02:43.8]} 11. Rc1 {[%clk
0:02:53.8]} 11... Bxf3 {[%clk 0:02:31.5]} 12. Bxf3 {[%clk 0:02:54.7]} 12... Qd7
{[%clk 0:02:28.2]} 13. a4 {[%clk 0:02:52]} 13... h5 {[%clk 0:02:24.7]} 14. d3
{[%clk 0:02:48.4]} 14... Rfc8 {[%clk 0:02:19.1]} 15. Qd2 {[%clk 0:02:47.7]}
15... h4 {[%clk 0:02:08.1]} 16. Kg2 {[%clk 0:02:24.9]} 16... h3+ {[%clk
0:02:04.6]} 17. Kg1 {[%clk 0:02:25.3]} 17... Ne8 {[%clk 0:01:55.5]} 18. Bxg7
{[%clk 0:02:22.8]} 18... Kxg7 {[%clk 0:01:52.2]} 19. Rc5 {[%clk 0:02:21.9]}
19... Nb4 {[%clk 0:01:42.3]} 20. Rfc1 {[%clk 0:02:19]} 20... Rxc5 {[%clk
0:01:35.6]} 21. Rxc5 {[%clk 0:02:19.9]} 21... b6 {[%clk 0:01:31]} 22. Rc1 {[%clk
0:02:08.8]} 22... Rc8 {[%clk 0:01:13]} 23. Kf1 {[%clk 0:02:04.3]} 23... e5
{[%clk 0:01:03.7]} 24. Rxc8 {[%clk 0:01:59]} 24... Qxc8 {[%clk 0:01:03.2]} 25.
Qc3 {[%clk 0:01:59.2]} 25... Qe6 {[%clk 0:00:55.3]} 26. e3 {[%clk 0:01:53.8]}
26... g5 {[%clk 0:00:38.4]} 27. Be2 {[%clk 0:01:46.5]} 27... Nf6 {[%clk
0:00:34.5]} 28. Ke1 {[%clk 0:01:26.1]} 28... Nd7 {[%clk 0:00:26.6]} 29. Nc7
{[%clk 0:01:23.5]} 29... Qd6 {[%clk 0:00:20.4]} 30. Ne8+ {[%clk 0:01:23.5]} 1-0

[Event "Late-Titled-Tuesday-Blitz-February-27-2024"]
[Site "Chess.com"]
[Date "2024.02.27"]
[Round "1"]
[White "epiclord678"]
[Black "chess94cu"]
[Result "0-1"]
[WhiteElo "2395"]
[BlackElo "2698"]
[TimeControl "180+1"]
[EndTime "14:05:39 PST"]
[Termination "chess94cu won by resignation"]

1. e4 {[%clk 0:03:00.9]} 1... c6 {[%clk 0:02:59.5]} 2. d4 {[%clk 0:03:00.7]}
2... d5 {[%clk 0:03:00.4]} 3. exd5 {[%clk 0:02:59.9]} 3... cxd5 {[%clk
0:03:00.2]} 4. c4 {[%clk 0:03:00.3]} 4... Nf6 {[%clk 0:03:00.3]} 5. Nc3 {[%clk
0:03:00.5]} 5... e6 {[%clk 0:03:00.5]} 6. Nf3 {[%clk 0:02:58]} 6... Bb4 {[%clk
0:03:01]} 7. cxd5 {[%clk 0:02:56.4]} 7... Nxd5 {[%clk 0:03:01.9]} 8. Qc2 {[%clk
0:02:54.7]} 8... Nc6 {[%clk 0:03:00]} 9. Bd3 {[%clk 0:02:46.7]} 9... h6 {[%clk
0:02:59.5]} 10. O-O {[%clk 0:02:44.9]} 10... Ba5 {[%clk 0:02:58.6]} 11. a3
{[%clk 0:02:44.5]} 11... O-O {[%clk 0:02:57.9]} 12. Ne4 {[%clk 0:02:38.7]} 12...
Bb6 {[%clk 0:02:55.3]} 13. Nc5 {[%clk 0:02:03.8]} 13... Nf6 {[%clk 0:02:35.1]}
14. Be3 {[%clk 0:02:01.8]} 14... Nd5 {[%clk 0:02:08.2]} 15. Bd2 {[%clk
0:01:32.2]} 15... Rb8 {[%clk 0:02:06.8]} 16. Rad1 {[%clk 0:01:25.3]} 16... Bd7
{[%clk 0:02:06.8]} 17. Rfe1 {[%clk 0:01:04.4]} 17... Qc7 {[%clk 0:01:55.6]} 18.
Nxd7 {[%clk 0:01:00.4]} 18... Qxd7 {[%clk 0:01:54.7]} 19. Bc1 {[%clk 0:00:58.6]}
19... Rbc8 {[%clk 0:01:50.6]} 20. Qe2 {[%clk 0:00:56.4]} 20... Rfd8 {[%clk
0:01:50.6]} 21. Bb1 {[%clk 0:00:42.2]} 21... Nf6 {[%clk 0:01:44.2]} 22. Ne5
{[%clk 0:00:23.1]} 22... Nxd4 {[%clk 0:01:32.7]} 23. Qd3 {[%clk 0:00:21.6]}
23... Qd5 {[%clk 0:01:25.3]} 24. Qg3 {[%clk 0:00:20.7]} 24... Ne2+ {[%clk
0:01:17.1]} 0-1

[Event "Late-Titled-Tuesday-Blitz-February-27-2024"]
[Site "Chess.com"]
[Date "2024.02.27"]
[Round "1"]
[White "andrzej"]
[Black "Bigfish1995"]
[Result "0-1"]
[WhiteElo "2528"]
[BlackElo "3164"]
[TimeControl "180+1"]
[EndTime "14:05:44 PST"]
[Termination "Bigfish1995 won by checkmate"]

1. e4 {[%clk 0:02:57.6]} 1... c6 {[%clk 0:02:55.1]} 2. d4 {[%clk 0:02:57.5]}
2... d5 {[%clk 0:02:55.7]} 3. e5 {[%clk 0:02:57.4]} 3... Bf5 {[%clk 0:02:55.7]}
4. h4 {[%clk 0:02:57.7]} 4... h6 {[%clk 0:02:54.1]} 5. g4 {[%clk 0:02:57.2]}
5... Be4 {[%clk 0:02:54.5]} 6. f3 {[%clk 0:02:57.1]} 6... Bh7 {[%clk 0:02:55.2]}
7. Bd3 {[%clk 0:02:57.2]} 7... Bxd3 {[%clk 0:02:53.5]} 8. Qxd3 {[%clk
0:02:58.1]} 8... e6 {[%clk 0:02:54.1]} 9. h5 {[%clk 0:02:54.8]} 9... c5 {[%clk
0:02:54.1]} 10. c3 {[%clk 0:02:54.5]} 10... cxd4 {[%clk 0:02:54]} 11. cxd4
{[%clk 0:02:53.9]} 11... Nc6 {[%clk 0:02:54.9]} 12. Ne2 {[%clk 0:02:53.5]} 12...
Rc8 {[%clk 0:02:53.2]} 13. Nbc3 {[%clk 0:02:43.4]} 13... Bb4 {[%clk 0:02:53.1]}
14. Be3 {[%clk 0:02:36.7]} 14... Nge7 {[%clk 0:02:48]} 15. f4 {[%clk 0:02:34.7]}
15... Qa5 {[%clk 0:02:30.3]} 16. O-O {[%clk 0:02:32.7]} 16... Qa6 {[%clk
0:02:26.3]} 17. Qd2 {[%clk 0:02:26]} 17... Na5 {[%clk 0:02:25.3]} 18. b3 {[%clk
0:02:24.4]} 18... g6 {[%clk 0:02:21.1]} 19. hxg6 {[%clk 0:02:16.8]} 19... fxg6
{[%clk 0:02:21]} 20. Rac1 {[%clk 0:02:08.6]} 20... h5 {[%clk 0:02:20.2]} 21.
gxh5 {[%clk 0:01:36.4]} 21... gxh5 {[%clk 0:02:08.5]} 22. Kf2 {[%clk 0:01:31.7]}
22... h4 {[%clk 0:02:08.2]} 23. Rg1 {[%clk 0:01:19.8]} 23... Kd7 {[%clk
0:02:03.7]} 24. Rg7 {[%clk 0:01:17.6]} 24... h3 {[%clk 0:01:57.2]} 25. f5 {[%clk
0:01:15.7]} 25... exf5 {[%clk 0:01:52.5]} 26. Nf4 {[%clk 0:01:13.6]} 26... Rxc3
{[%clk 0:01:49]} 27. Rxc3 {[%clk 0:01:11.4]} 27... h2 {[%clk 0:01:49.1]} 28.
Rc7+ {[%clk 0:01:01]} 28... Kxc7 {[%clk 0:01:43.3]} 29. Qxb4 {[%clk 0:00:13.9]}
29... h1=Q {[%clk 0:01:42.6]} 30. Qxe7+ {[%clk 0:00:07.6]} 30... Kb8 {[%clk
0:01:42.5]} 31. Qc7+ {[%clk 0:00:08.3]} 31... Ka8 {[%clk 0:01:42.4]} 32. Ne6
{[%clk 0:00:02.2]} 32... Qaf1+ {[%clk 0:01:39.4]} 33. Kg3 {[%clk 0:00:01.8]}
33... Rh3# {[%clk 0:01:37.9]} 0-1

[Event "Late-Titled-Tuesday-Blitz-February-27-2024"]
[Site "Chess.com"]
[Date "2024.02.27"]
[Round "1"]
[White "gxbg2000"]
[Black "krucki03"]
[Result "0-1"]
[WhiteElo "1931"]
[BlackElo "2532"]
[TimeControl "180+1"]
[EndTime "14:05:46 PST"]
[Termination "krucki03 won by resignation"]

1. e4 {[%clk 0:03:00.4]} 1... c5 {[%clk 0:02:50.3]} 2. Nf3 {[%clk 0:02:59.9]}
2... d6 {[%clk 0:02:47]} 3. Bb5+ {[%clk 0:02:59.4]} 3... Nc6 {[%clk 0:02:38.6]}
4. Bxc6+ {[%clk 0:02:59.3]} 4... bxc6 {[%clk 0:02:39.1]} 5. d4 {[%clk
0:02:59.8]} 5... cxd4 {[%clk 0:02:39.8]} 6. Qxd4 {[%clk 0:02:58.8]} 6... e5
{[%clk 0:02:36.2]} 7. Qe3 {[%clk 0:02:51.3]} 7... Nf6 {[%clk 0:02:34.4]} 8. h3
{[%clk 0:02:50.8]} 8... Be7 {[%clk 0:02:33.7]} 9. b3 {[%clk 0:02:49.3]} 9... h6
{[%clk 0:02:31.7]} 10. Bb2 {[%clk 0:02:48.6]} 10... Be6 {[%clk 0:02:31.1]} 11.
Nbd2 {[%clk 0:02:48.2]} 11... Qa5 {[%clk 0:02:20.6]} 12. O-O {[%clk 0:02:46.3]}
12... O-O {[%clk 0:02:20.6]} 13. Rfd1 {[%clk 0:02:45.3]} 13... Rfd8 {[%clk
0:02:03.9]} 14. c4 {[%clk 0:02:44.8]} 14... Qb6 {[%clk 0:01:56.9]} 15. Qxb6
{[%clk 0:02:28.2]} 15... axb6 {[%clk 0:01:56.8]} 16. Nh2 {[%clk 0:02:22.4]}
16... Nd7 {[%clk 0:01:38.2]} 17. f3 {[%clk 0:02:20.4]} 17... Nc5 {[%clk
0:01:31.4]} 18. Bc3 {[%clk 0:02:16.5]} 18... f5 {[%clk 0:01:29.4]} 19. exf5
{[%clk 0:02:04.8]} 19... Bxf5 {[%clk 0:01:29.8]} 20. Ng4 {[%clk 0:02:04.9]}
20... Bg5 {[%clk 0:01:26.7]} 21. Kf1 {[%clk 0:01:54.4]} 21... Bd3+ {[%clk
0:01:18.6]} 22. Kf2 {[%clk 0:01:50.8]} 22... b5 {[%clk 0:01:14.5]} 23. cxb5
{[%clk 0:01:49]} 23... cxb5 {[%clk 0:01:15.4]} 24. Ne3 {[%clk 0:01:40.4]} 24...
Rac8 {[%clk 0:01:06.4]} 25. Bb4 {[%clk 0:01:38.1]} 25... Na6 {[%clk 0:01:04]}
26. Ba5 {[%clk 0:01:34.2]} 26... Rf8 {[%clk 0:01:02.7]} 27. Rac1 {[%clk
0:01:22.1]} 27... Kf7 {[%clk 0:00:54.5]} 28. Nd5 {[%clk 0:01:14.9]} 28... Ke6
{[%clk 0:00:47]} 29. Nb4 {[%clk 0:01:07.2]} 29... Rxc1 {[%clk 0:00:41.7]} 30.
Rxc1 {[%clk 0:01:03.5]} 30... Bxd2 {[%clk 0:00:39.9]} 31. Rd1 {[%clk 0:01:01.3]}
31... Bxb4 {[%clk 0:00:38.6]} 32. Bxb4 {[%clk 0:00:59.8]} 32... Nxb4 {[%clk
0:00:39.5]} 0-1

[Event "Late-Titled-Tuesday-Blitz-February-27-2024"]
[Site "Chess.com"]
[Date "2024.02.27"]
[Round "1"]
[White "venturov"]
[Black "CarlosAlbornoz"]
[Result "0-1"]
[WhiteElo "2443"]
[BlackElo "2775"]
[TimeControl "180+1"]
[EndTime "14:05:47 PST"]
[Termination "CarlosAlbornoz won by resignation"]

1. Nf3 {[%clk 0:03:00.9]} 1... d5 {[%clk 0:02:57.1]} 2. g3 {[%clk 0:02:59.7]}
2... g6 {[%clk 0:02:57.2]} 3. Bg2 {[%clk 0:02:59.9]} 3... Bg7 {[%clk 0:02:57.7]}
4. O-O {[%clk 0:03:00.5]} 4... e5 {[%clk 0:02:57]} 5. c4 {[%clk 0:02:59.5]} 5...
d4 {[%clk 0:02:54]} 6. d3 {[%clk 0:02:59.6]} 6... Nc6 {[%clk 0:02:54.3]} 7. e3
{[%clk 0:02:52.6]} 7... dxe3 {[%clk 0:02:53.1]} 8. fxe3 {[%clk 0:02:36.3]} 8...
Nge7 {[%clk 0:02:49.8]} 9. Nc3 {[%clk 0:02:36.3]} 9... O-O {[%clk 0:02:49.5]}
10. e4 {[%clk 0:02:15.4]} 10... Bg4 {[%clk 0:02:47.6]} 11. Nd5 {[%clk
0:02:07.8]} 11... Nd4 {[%clk 0:02:41.7]} 12. Bg5 {[%clk 0:01:58.4]} 12... f6
{[%clk 0:02:36]} 13. Be3 {[%clk 0:01:56.9]} 13... Nxf3+ {[%clk 0:02:30.5]} 14.
Bxf3 {[%clk 0:01:55.3]} 14... Bxf3 {[%clk 0:02:28.8]} 15. Rxf3 {[%clk
0:01:42.7]} 15... c6 {[%clk 0:02:28.7]} 16. Nxe7+ {[%clk 0:01:40.7]} 16... Qxe7
{[%clk 0:02:29.6]} 17. Qd2 {[%clk 0:01:29.6]} 17... Rad8 {[%clk 0:02:26.2]} 18.
Rd1 {[%clk 0:01:29.3]} 18... Rd7 {[%clk 0:02:23.2]} 19. Bxa7 {[%clk 0:01:26]}
19... Ra8 {[%clk 0:02:22.7]} 20. Qf2 {[%clk 0:01:25.9]} 20... b5 {[%clk
0:02:16.5]} 21. Bc5 {[%clk 0:01:24.1]} 21... Qe6 {[%clk 0:02:16.6]} 22. cxb5
{[%clk 0:01:20.6]} 22... cxb5 {[%clk 0:02:16.1]} 23. a3 {[%clk 0:01:20.4]} 23...
Qb3 {[%clk 0:02:14.4]} 24. Rd2 {[%clk 0:01:14.2]} 24... Rad8 {[%clk 0:02:10.6]}
25. d4 {[%clk 0:01:14.4]} 25... Qc4 {[%clk 0:02:08.1]} 26. d5 {[%clk 0:01:06.5]}
26... Qxe4 {[%clk 0:02:07.2]} 27. d6 {[%clk 0:01:02.6]} 27... Qc6 {[%clk
0:02:07.1]} 28. b4 {[%clk 0:01:01.2]} 28... f5 {[%clk 0:02:06.1]} 29. g4 {[%clk
0:00:51.7]} 29... e4 {[%clk 0:02:06.2]} 30. Rg3 {[%clk 0:00:50.9]} 30... Be5
{[%clk 0:01:45.6]} 31. gxf5 {[%clk 0:00:49.2]} 31... Bxg3 {[%clk 0:01:45.6]} 32.
Qxg3 {[%clk 0:00:49.5]} 32... Rf7 {[%clk 0:01:37.3]} 33. fxg6 {[%clk 0:00:47.5]}
33... Rg7 {[%clk 0:01:37.5]} 34. Bd4 {[%clk 0:00:27.6]} 34... Rxg6 {[%clk
0:01:33.8]} 0-1

[Event "Late-Titled-Tuesday-Blitz-February-27-2024"]
[Site "Chess.com"]
[Date "2024.02.27"]
[Round "1"]
[White "Binary010"]
[Black "kasparicy"]
[Result "0-1"]
[WhiteElo "2823"]
[BlackElo "2504"]
[TimeControl "180+1"]
[EndTime "14:05:49 PST"]
[Termination "kasparicy won by resignation"]

1. d4 {[%clk 0:03:00.9]} 1... d5 {[%clk 0:02:55.4]} 2. c4 {[%clk 0:03:00.9]}
2... e6 {[%clk 0:02:55.5]} 3. Nf3 {[%clk 0:02:59.4]} 3... c6 {[%clk 0:02:52.3]}
4. Nc3 {[%clk 0:02:54.5]} 4... f5 {[%clk 0:02:52.2]} 5. Bf4 {[%clk 0:02:52.7]}
5... Nf6 {[%clk 0:02:51.9]} 6. e3 {[%clk 0:02:52.8]} 6... Bd6 {[%clk 0:02:52.3]}
7. Bd3 {[%clk 0:02:44.7]} 7... O-O {[%clk 0:02:51.3]} 8. O-O {[%clk 0:02:44.5]}
8... Qe7 {[%clk 0:02:51.6]} 9. Bxd6 {[%clk 0:02:38.8]} 9... Qxd6 {[%clk
0:02:49.9]} 10. Ne5 {[%clk 0:02:38.6]} 10... Nbd7 {[%clk 0:02:49]} 11. f4 {[%clk
0:02:38.9]} 11... Ne4 {[%clk 0:02:47.7]} 12. Qc2 {[%clk 0:02:18.7]} 12... Ndf6
{[%clk 0:02:47.1]} 13. c5 {[%clk 0:02:12.7]} 13... Qd8 {[%clk 0:02:39.5]} 14. b4
{[%clk 0:02:12.6]} 14... Bd7 {[%clk 0:02:38.4]} 15. a4 {[%clk 0:02:09.1]} 15...
a6 {[%clk 0:02:35.1]} 16. b5 {[%clk 0:02:00.6]} 16... axb5 {[%clk 0:02:31.8]}
17. axb5 {[%clk 0:02:00.6]} 17... Nxc3 {[%clk 0:02:15.2]} 18. Qxc3 {[%clk
0:02:00.6]} 18... cxb5 {[%clk 0:02:15.8]} 19. Rxa8 {[%clk 0:01:48.2]} 19... Qxa8
{[%clk 0:02:14.9]} 20. Ra1 {[%clk 0:01:48.9]} 20... Qe8 {[%clk 0:02:08]} 21. Ra7
{[%clk 0:01:42.7]} 21... Bc6 {[%clk 0:02:07.9]} 22. h3 {[%clk 0:01:41.2]} 22...
Qh5 {[%clk 0:02:01.7]} 23. Qb2 {[%clk 0:01:08.5]} 23... g5 {[%clk 0:02:01]} 24.
Bxb5 {[%clk 0:01:00.6]} 24... g4 {[%clk 0:01:36.8]} 25. Bxc6 {[%clk 0:00:45.3]}
25... gxh3 {[%clk 0:01:25.4]} 26. Bb5 {[%clk 0:00:24.3]} 26... h2+ {[%clk
0:01:08.5]} 27. Kh1 {[%clk 0:00:23.9]} 27... Ne4 {[%clk 0:01:09.1]} 0-1